bitfinex-derivatives/quotes_ETHF0:USTF0_20251103
["timestamp","ask_amount","ask_price","bid_price","bid_amount"]
[1762179136660,3.2078,3737.8,3737.1,13.39553]
[1762179137052,3.2078,3737.8,3737.1,12.9138]
[1762179138361,3.2078,3737.8,3737.1,13.39552]
[1762179138556,1.82532664,3738.0,3737.5,3.2078]
[1762179138860,1.82532664,3738.0,3737.1,9.706]
[1762179138861,1.82532664,3738.0,3737.9,3.68942]
[1762179139062,1.82532664,3738.0,3737.9,20.08042]
[1762179142360,1.82532664,3738.0,3737.9,3.2078]
[1762179142853,1.82532664,3738.0,3737.9,11.1978]
[1762179143365,1.82532664,3738.0,3737.9,9.7]
[1762179145365,1.82532664,3738.0,3737.9,12.9078]
[1762179145863,1.82532664,3738.0,3737.9,19.5958]
[1762179146869,1.82532664,3738.0,3737.9,20.07742]
[1762179147572,1.21382664,3738.0,3737.9,20.07742]
[1762179149363,1.21382664,3738.0,3737.9,13.38942]
[1762179149567,1.21382664,3738.0,3737.9,20.07742]
[1762179150774,1.21382664,3738.0,3737.9,13.38942]
[1762179153273,1.21382664,3738.0,3737.9,13.38342]
[1762179155177,1.21382664,3738.0,3737.9,3.68942]
[1762179155374,1.21382664,3738.0,3737.9,13.38142]
[1762179156279,0.42273664,3738.0,3737.9,20.06942]
[1762179156480,0.42273664,3738.0,3737.9,13.38142]
[1762179156678,0.42273664,3738.0,3737.9,20.06942]
[1762179157780,0.26773664,3738.5,3738.4,0.48156]
[1762179158079,0.26773664,3738.5,3738.4,10.17256]
[1762179158674,0.26773664,3738.5,3738.4,9.691]
[1762179158872,0.26773664,3738.5,3738.4,9.689]
[1762179159072,0.26773664,3738.5,3738.4,10.17056]
[1762179159981,0.26773664,3738.5,3738.4,9.689]
[1762179160370,0.26773664,3738.5,3738.4,10.17056]
[1762179160681,0.26773664,3738.5,3738.4,9.9267]
[1762179160882,0.26773664,3738.5,3738.4,10.40826]
[1762179165783,0.26773664,3738.5,3738.4,0.2377]
[1762179166087,0.26773664,3738.5,3738.4,9.9227]
[1762179166279,0.26773664,3738.5,3738.4,10.40426]
[1762179166479,0.26773664,3738.5,3738.4,9.9227]
[1762179167283,3.2078,3738.9,3738.4,9.685]
[1762179167485,3.2078,3738.9,3738.8,0.48151]
[1762179167687,3.46074724,3738.9,3738.8,10.16551]
[1762179167881,3.46074724,3738.9,3738.8,9.684]
[1762179169382,0.25294724,3738.9,3738.8,10.16551]
[1762179169588,0.25294724,3738.9,3738.8,9.684]
[1762179171287,0.25294724,3738.9,3738.8,10.16551]
[1762179171486,0.25294724,3738.9,3738.8,9.684]
[1762179171788,8.83903259,3738.9,3737.6,3.2078]
[1762179171983,3.2078,3738.1,3737.7,9.681]
[1762179172189,0.83919802,3738.0,3737.7,9.681]
[1762179172383,0.25294724,3737.9,3737.7,9.681]
[1762179172582,0.25294724,3737.8,3737.7,9.681]
[1762179172787,0.25294724,3738.0,3737.7,9.681]
[1762179173283,0.25294724,3738.0,3737.9,0.48162]
[1762179173485,3.2078,3738.4,3737.7,11.57680965]
[1762179173681,0.83856115,3738.3,3737.8,9.68]
[1762179173888,3.2078,3737.9,3737.8,9.68]
[1762179174085,3.46076729,3737.9,3737.2,3.2078]
[1762179174287,0.25296729,3737.8,3737.3,9.68]
[1762179174489,0.25296729,3737.8,3737.2,3.2078]
[1762179174786,0.25296729,3737.8,3736.9,0.48175]
[1762179174979,0.25296729,3737.8,3737.3,9.679]
[1762179175586,3.2078,3737.5,3737.3,9.679]
[1762179176281,3.2078,3738.3,3737.3,9.679]
[1762179176489,3.2078,3737.9,3737.4,0.48169]
[1762179176687,0.25267776,3737.8,3737.3,9.679]
[1762179176884,3.2078,3737.9,3737.5,0.48167]
[1762179177086,3.2078,3738.4,3737.4,1.20422]
[1762179177385,0.25263149,3738.3,3737.7,0.48164]
[1762179177585,0.25263149,3738.2,3737.8,9.679]
[1762179177787,3.2078,3738.4,3737.9,9.679]
[1762179177991,0.25258876,3738.3,3737.9,9.679]
[1762179178190,0.25258876,3738.2,3737.9,9.679]
[1762179178490,3.2078,3738.4,3737.9,9.679]
[1762179178689,0.25255919,3738.3,3737.9,9.679]
[1762179178885,3.2078,3738.4,3737.9,9.679]
[1762179179086,0.2525589,3738.3,3737.9,9.679]
[1762179179290,3.2078,3738.4,3737.9,9.679]
[1762179179487,0.25253724,3738.3,3737.9,9.679]
[1762179179693,0.2525385,3738.2,3737.9,9.679]
[1762179179888,3.2078,3738.4,3737.9,9.679]
[1762179180088,0.25253844,3738.3,3737.9,9.679]
[1762179180291,3.2078,3738.4,3737.9,9.679]
[1762179180491,0.25252812,3738.3,3737.9,9.679]
[1762179180685,3.2078,3738.4,3737.9,9.679]
[1762179180890,0.25252804,3738.3,3737.9,9.679]
[1762179181091,3.2078,3738.4,3737.9,9.679]
[1762179181291,0.25251933,3738.3,3737.9,9.679]
[1762179181592,0.25251933,3738.3,3737.0,1.41416965]
[1762179181593,3.2078,3738.0,3737.0,1.41416965]
[1762179181792,0.25250851,3737.9,3737.1,9.677]
[1762179182191,0.25250851,3737.9,3736.6,0.00319945]
[1762179182192,3.2078,3737.4,3736.6,0.00319945]
[1762179182490,0.58458101,3737.8,3736.6,0.00319945]
[1762179182491,3.2078,3737.0,3736.6,0.00319945]
[1762179183095,0.25252176,3736.9,3736.6,0.00319945]
[1762179183290,3.2078,3737.0,3736.6,0.00319945]
[1762179183594,0.25231213,3736.9,3736.6,0.00319945]
[1762179183795,3.2078,3737.0,3736.6,0.00319945]
[1762179183990,0.25231213,3736.9,3736.6,0.00319945]
[1762179184293,0.25231601,3736.8,3735.5,3.2078]
[1762179184589,0.25231601,3736.8,3735.3,3.937]
[1762179184590,3.2078,3735.7,3735.3,3.937]
[1762179185183,3.21001347,3735.7,3735.3,0.00212548]
[1762179186989,6.6928,3735.6,3735.3,0.00212548]
[1762179187490,6.6928,3735.5,3735.3,0.00212548]
[1762179187699,3.21001347,3735.7,3735.3,0.00212548]
[1762179187700,6.6928,3735.6,3735.3,0.00212548]
[1762179187987,3.21001347,3735.7,3735.3,0.00212548]
[1762179188991,6.6928,3735.6,3735.3,0.00212548]
[1762179189391,8.0,3735.5,3734.6,9.675]
[1762179189587,3.2078,3735.0,3734.6,9.675]
[1762179190501,3.2078,3735.0,3734.6,9.67792057]
[1762179191193,3.2078,3735.0,3734.6,0.00292057]
[1762179201906,3.2078,3735.0,3734.7,0.48204]
[1762179202609,3.2078,3735.0,3734.6,0.48497057]
[1762179203004,3.2078,3735.0,3732.3,12.05858]
[1762179203212,3.2078,3729.5,3729.4,1.26668523]
[1762179203504,3.047,3731.0,3727.4,3.649]
[1762179203707,1.43771782,3729.2,3727.5,0.48297]
[1762179204005,1.38459471,3729.1,3728.8,0.4828]
[1762179204303,1.38459471,3729.0,3728.8,0.4828]
[1762179204509,1.38459471,3728.9,3728.8,0.4828]
[1762179204706,1.38459471,3728.9,3728.8,0.4768]
[1762179204913,1.38459471,3728.9,3728.8,10.081]
[1762179205412,1.38459471,3728.9,3728.8,10.075]
[1762179206199,3.2078,3729.1,3728.9,0.48279]
[1762179206405,3.2078,3729.1,3729.0,10.076]
[1762179206599,3.2078,3729.1,3728.9,6.981]
[1762179206801,4.63529802,3729.1,3729.0,0.48278]
[1762179207107,3.2078,3729.9,3728.9,8.3772]
[1762179207305,3.2078,3729.4,3728.9,8.3772]
[1762179207506,3.2078,3729.9,3729.3,0.48274]
[1762179207708,3.2078,3729.5,3729.4,10.083]
[1762179207905,3.2078,3729.5,3729.2,0.48275]
[1762179208109,3.2078,3729.9,3729.6,0.48269]
[1762179208409,1.91518686,3730.5,3730.3,0.4826]
[1762179208604,1.9172575,3730.5,3730.4,10.077]
[1762179208800,1.91518686,3731.2,3730.9,0.48253]
[1762179209007,3.2078,3731.4,3730.4,0.649]
[1762179209302,1.91518686,3730.9,3730.5,10.117]
[1762179209508,1.91518686,3730.9,3730.7,0.48255]
[1762179209810,0.00212028,3730.9,3730.5,10.117]
[1762179210511,1.91730714,3730.9,3730.5,10.117]
[1762179210712,1.91730714,3730.9,3730.3,16.07208215]
[1762179210713,1.91518686,3730.7,3730.3,3.21008215]
[1762179211009,3.2078,3730.5,3730.3,0.00228215]
[1762179211209,3.2078,3730.5,3730.4,10.11]
[1762179211605,5.11033532,3730.5,3730.4,10.11]
[1762179211813,3.2078,3730.5,3730.4,10.107]
[1762179212009,5.11033532,3730.5,3730.4,10.107]
[1762179212212,3.2078,3730.5,3730.4,10.107]
[1762179212816,5.11090006,3730.5,3730.4,10.107]
[1762179213317,3.2078,3730.5,3730.4,10.107]
[1762179213613,3.2078,3730.5,3730.4,8.65911455]
[1762179214310,3.2078,3730.5,3730.4,6.4872851]
[1762179214504,2.39386916,3730.7,3730.4,6.4872851]
[1762179214804,3.2078,3730.5,3730.3,0.00228215]
[1762179215009,3.2078,3730.5,3730.4,10.088]
[1762179217110,3.2078,3730.5,3730.3,0.00228215]
[1762179217412,3.2078,3730.5,3730.4,10.089]
[1762179218117,0.48262,3730.2,3729.3,3.2078]
[1762179218317,3.2078,3729.9,3729.4,10.085]
[1762179218512,1.2230587,3729.8,3729.6,0.48269]
[1762179218817,1.2230587,3729.7,3729.6,0.48269]
[1762179219208,1.2230587,3729.7,3729.6,0.48477661]
[1762179219612,1.21693365,3729.7,3729.6,0.48477661]
[1762179220519,1.21693365,3729.7,3729.6,10.56677661]
[1762179221011,1.21693365,3729.7,3729.6,10.56177661]
[1762179221214,1.21693365,3729.7,3729.6,10.55577661]
[1762179221913,1.21693365,3729.7,3729.6,10.55377661]
[1762179223418,1.21693365,3729.7,3729.6,10.54777661]
[1762179223618,1.21693365,3729.7,3729.6,10.53977661]
[1762179224018,1.21693365,3729.7,3729.6,10.05708661]
[1762179224318,1.21693365,3729.7,3729.6,10.53978661]
[1762179224724,1.21693365,3729.7,3729.6,10.05708661]
[1762179224926,1.21693365,3729.7,3729.6,10.53978661]
[1762179226027,1.21693365,3729.7,3729.6,5.47126774]
[1762179226923,3.60008221,3729.7,3729.6,10.5206527]
[1762179227321,1.21693365,3729.7,3729.6,10.5206527]
[1762179227517,1.21693365,3729.7,3729.6,10.5146527]
[1762179228525,1.21693365,3729.7,3729.6,9.06650445]
[1762179229217,3.34554208,3730.6,3730.0,1.20662]
[1762179229522,3.34554208,3730.6,3730.5,0.48258]
[1762179229820,3.2078,3730.7,3730.6,0.48257]
[1762179230213,3.2078,3730.7,3730.5,10.024]
[1762179230421,3.2078,3730.7,3730.0,0.00271433]
[1762179230623,3.2078,3730.1,3730.0,0.00271433]
[1762179230824,3.2078,3730.1,3730.0,10.02071433]
[1762179231419,3.2078,3730.1,3730.0,10.01971433]
[1762179231824,3.2078,3730.1,3730.0,0.00271433]
[1762179232028,3.2078,3730.1,3730.0,10.01771433]
[1762179232225,3.2078,3730.5,3730.2,0.48261]
[1762179232623,3.2078,3730.5,3730.0,10.50035433]
[1762179232926,3.2078,3730.1,3730.0,10.50035433]
[1762179233122,3.2078,3730.5,3730.0,10.50034433]
[1762179234020,3.2078,3730.5,3730.0,10.50035433]
[1762179234524,3.2078,3730.5,3730.0,10.01771433]
[1762179234726,3.2078,3730.5,3730.0,10.50035433]
[1762179235626,3.2078,3730.5,3730.0,10.01771433]
[1762179235829,3.2078,3730.5,3730.0,10.50035433]
[1762179236128,1.92487439,3730.1,3730.0,10.50035433]
[1762179236328,1.92487439,3730.2,3730.0,10.50035433]
[1762179237029,1.92487439,3730.4,3730.1,9.986]
[1762179237232,1.92487439,3730.4,3730.1,10.46863]
[1762179237423,5.13267439,3730.5,3730.1,10.46863]
[1762179237630,5.61525439,3730.5,3730.1,9.986]
[1762179238132,3.2078,3730.5,3730.0,0.48535433]
[1762179238324,3.69038,3730.5,3730.1,9.982]
[1762179238525,3.2078,3730.5,3730.1,9.982]
[1762179239129,3.2078,3730.5,3730.2,9.974]
[1762179239634,3.2078,3730.5,3730.0,0.48535433]
[1762179239833,3.2078,3730.5,3730.1,9.965]
[1762179240026,3.2078,3730.5,3730.1,10.44763]
[1762179240227,3.2078,3730.5,3730.2,9.965]
[1762179241221,1.04677328,3730.4,3730.2,9.965]
[1762179241420,1.04677328,3730.3,3730.2,9.965]
[1762179241625,1.04677328,3730.3,3730.2,9.961]
[1762179242021,0.48259,3730.4,3730.2,9.961]
[1762179242022,3.20992028,3730.9,3730.8,0.48254]
[1762179242226,0.74715702,3730.9,3730.8,10.45454]
[1762179242525,1.50165237,3731.1,3730.8,10.45454]
[1762179242724,1.50165237,3731.1,3730.4,3.2078]
[1762179242725,1.50165237,3731.1,3730.9,9.976]
[1762179242934,1.50165237,3731.1,3730.9,10.45852]
[1762179243129,0.48262,3730.2,3729.3,3.2078]
[1762179243336,3.2078,3730.1,3728.9,11.585]
[1762179243537,3.2078,3729.7,3729.0,8.761]
[1762179244030,3.2078,3729.7,3729.3,0.48273]
[1762179244223,3.20987802,3729.7,3729.3,0.00248173]
[1762179244427,3.20987802,3729.7,3729.3,0.48521173]
[1762179245231,3.20987802,3729.7,3729.3,0.00248173]
[1762179245436,3.20987802,3729.7,3729.4,9.998]
[1762179247736,3.20987802,3729.7,3729.5,10.006]
[1762179247938,3.20987802,3729.7,3728.9,8.3772]
[1762179248237,3.2078,3729.1,3729.0,9.992]
[1762179249029,3.2078,3729.6,3729.0,10.47697301]
[1762179249232,3.2078,3729.1,3729.0,0.00220301]
[1762179249433,3.2078,3729.1,3729.0,9.99220301]
[1762179249628,0.00207802,3729.7,3729.0,10.47496301]
[1762179249835,3.2078,3729.5,3729.0,10.47497301]
[1762179250035,3.2078,3729.5,3729.1,0.48276]
[1762179250338,3.2078,3729.5,3729.0,9.99220301]
[1762179250538,3.2078,3729.5,3729.1,0.48276]
[1762179250837,3.2078,3729.5,3729.0,9.99220301]
[1762179251037,3.2078,3729.5,3729.1,0.48276]
[1762179251538,3.2078,3729.5,3729.2,10.46675]
[1762179251733,3.2078,3729.5,3729.2,0.48275]
[1762179251933,3.2078,3729.5,3729.3,6.212]
[1762179252537,3.2078,3729.5,3729.4,9.974]
[1762179254038,3.50561723,3729.5,3729.4,9.974]
[1762179254337,3.50561723,3729.5,3729.4,9.973]
[1762179254540,4.23233008,3729.5,3729.4,9.973]
[1762179255235,3.93451285,3729.5,3729.4,9.96]
[1762179255739,3.93451285,3729.5,3729.4,9.952]
[1762179255938,3.2078,3729.5,3729.4,9.952]
[1762179259734,3.2078,3729.5,3729.0,0.00220301]
[1762179259934,3.2078,3729.1,3728.0,1.20726]
[1762179260131,3.2078,3729.0,3728.9,0.48279]
[1762179260629,3.2078,3729.0,3728.9,9.927]
[1762179260941,3.2078,3729.0,3728.9,9.9288884]
[1762179261133,3.2078,3729.0,3728.9,0.4846784]
[1762179261536,3.2078,3729.0,3728.9,10.4056784]
[1762179261840,3.2078,3729.0,3728.9,10.4046784]
[1762179262239,3.2078,3729.0,3728.9,9.9218884]
[1762179262540,3.2078,3729.0,3728.9,10.4046784]
[1762179262737,0.00207802,3729.7,3728.9,10.4046784]
[1762179262738,3.2078,3729.5,3728.9,10.4046784]
[1762179262938,3.2078,3729.5,3729.4,0.48272]
[1762179263234,0.00207802,3729.7,3729.4,0.48272]
[1762179263235,0.00207802,3729.7,3729.6,0.4827]
[1762179264035,0.00207802,3729.7,3729.6,0.69617241]
[1762179264238,0.00207802,3729.7,3729.6,0.4827]
[1762179265843,0.00207802,3729.7,3729.6,0.69296294]
[1762179266348,0.00207802,3729.7,3729.6,0.4827]
[1762179267138,0.00207802,3729.7,3729.6,0.69312621]
[1762179267343,0.00207802,3729.7,3729.6,0.21042621]
[1762179267840,0.00207802,3729.7,3729.6,0.4827]
[1762179268337,1.20637,3730.8,3729.9,1.20663]
[1762179268338,3.2078,3730.8,3729.9,1.20663]
[1762179268544,3.2078,3731.4,3730.5,3.2078]
[1762179268746,3.69027,3731.4,3730.7,0.48255]
[1762179268942,3.69027,3731.4,3730.8,10.37554]
[1762179269247,3.2078,3731.0,3730.8,9.893]
[1762179269544,3.2110147,3731.0,3730.7,0.48255]
[1762179269746,3.2110147,3731.0,3730.2,1.20655]
[1762179269747,3.2110147,3731.0,3730.8,9.89]
[1762179269948,3.2110147,3731.0,3730.8,10.37254]
[1762179270549,3.2110147,3731.0,3730.8,9.89]
[1762179270749,3.2110147,3731.0,3730.8,10.37254]
[1762179270948,3.2110147,3731.0,3730.8,9.89]
[1762179271945,3.2110147,3731.0,3730.3,12.872]
[1762179271946,3.2110147,3731.0,3730.9,9.89]
[1762179274548,3.2110147,3731.0,3730.9,9.864]
[1762179274746,3.2110147,3731.0,3730.9,9.861]
[1762179285260,3.2110147,3731.0,3730.9,10.34354]
[1762179286462,3.2110147,3731.0,3730.9,9.861]
[1762179288668,3.2110147,3731.0,3730.9,9.789]
[1762179289173,1.20635,3730.9,3729.6,3.42094346]
[1762179289377,0.0032147,3731.0,3729.7,9.792]
[1762179289579,3.2110147,3731.0,3730.8,0.48255]
[1762179289772,3.2110147,3731.0,3730.9,9.795]
[1762179292165,3.50864478,3731.0,3730.9,9.795]
[1762179292971,1.20638,3730.9,3729.6,0.21314346]
[1762179293172,3.2078,3730.0,3729.9,0.48268]
[1762179293381,3.2078,3730.0,3729.9,9.791]
[1762179294472,3.2078,3730.0,3729.7,0.4827]
[1762179294781,3.2078,3730.0,3729.8,9.655]
[1762179294987,3.2078,3730.0,3729.2,14.07592]
[1762179294988,3.2078,3730.0,3729.3,0.48275]
[1762179295284,3.2078,3729.6,3729.4,10.26574]
[1762179295477,3.2078,3729.6,3729.0,0.48278]
[1762179295679,3.69052,3729.6,3729.1,9.786]
[1762179295876,0.48273,3729.5,3729.0,0.48278]
[1762179296078,0.48273,3729.5,3729.1,9.786]
[1762179296279,0.48273,3729.5,3729.0,0.48278]
[1762179296484,0.48273,3729.5,3729.2,9.786]
[1762179296682,0.48273,3729.5,3728.9,0.0018884]
[1762179296985,3.2078,3729.2,3729.0,9.783]
[1762179297181,3.2078,3729.2,3729.1,0.48278]
[1762179297386,3.2078,3729.2,3729.0,9.783]
[1762179298189,3.2078,3729.2,3729.0,10.26579]
[1762179299394,7.67830821,3729.1,3726.2,2.38023627]
[1762179299584,0.97350821,3729.0,3726.2,2.38023627]
[1762179299882,0.29740944,3728.9,3726.3,1.962]
[1762179300082,0.29740944,3728.8,3726.4,1.962]
[1762179300281,0.29740944,3728.7,3726.4,1.962]
[1762179300486,5.32526734,3729.1,3727.0,1.89968986]
[1762179300487,3.2078,3727.7,3727.0,1.89968986]
[1762179300682,0.0032185,3727.7,3727.5,21.23353436]
[1762179300882,0.0032185,3727.7,3727.6,9.935]
[1762179300883,3.2110185,3727.7,3727.6,9.935]
[1762179301086,0.0032185,3727.7,3727.6,30.68556436]
[1762179302184,0.0032185,3727.7,3727.0,3.2078]
[1762179302388,3.2078,3727.3,3727.1,9.928]
[1762179302888,3.2078,3727.3,3727.2,20.75056436]
[1762179303190,3.2110185,3727.7,3727.0,20.75056436]
[1762179303383,3.2110185,3727.7,3727.0,21.23360436]
[1762179303582,3.2110185,3727.7,3727.1,9.923]
[1762179303992,3.2110185,3727.7,3726.8,0.48307]
[1762179304181,3.2110185,3727.7,3726.9,5.388]
[1762179304385,3.2110185,3727.7,3726.9,26.13856436]
[1762179304689,3.2110185,3727.7,3726.9,5.388]
[1762179305191,3.2110185,3727.7,3726.6,3.6909]
[1762179305389,3.2110185,3727.7,3726.7,9.923]
[1762179305693,3.2110185,3727.7,3726.7,10.40608]
[1762179305892,3.2110185,3727.7,3726.7,0.48308]
[1762179306188,3.2078,3726.8,3726.5,0.23077419]
[1762179306588,11.2078,3726.8,3726.5,0.23077419]
[1762179306794,11.2078,3726.8,3725.7,3.2078]
[1762179306995,3.2078,3726.8,3725.7,5.052]
[1762179307191,3.2078,3726.8,3725.1,3.2078]
[1762179307192,3.2078,3726.0,3725.1,3.2078]
[1762179307389,3.2078,3725.5,3724.7,3.23464816]
[1762179307595,3.2078,3725.5,3724.8,9.912]
[1762179307985,3.2078,3725.5,3724.9,9.911]
[1762179308194,3.2078,3725.1,3724.8,0.00266453]
[1762179310197,0.48331,3725.0,3724.8,0.00266453]
[1762179310394,0.48637783,3725.0,3724.8,0.00266453]
[1762179311801,0.48637783,3725.0,3723.6,0.48348]
[1762179311802,0.48334,3724.8,3723.6,0.48348]
[1762179312001,3.2078,3724.3,3723.6,0.48349]
[1762179312396,3.2078,3724.3,3723.6,21.23405436]
[1762179312695,3.2078,3724.3,3723.8,20.75056436]
[1762179313099,3.2078,3724.3,3724.0,20.75056436]
[1762179314401,3.2078,3724.3,3723.6,0.00252967]
[1762179314600,3.2078,3724.8,3724.3,0.4834]
[1762179314992,3.2078,3724.8,3724.7,20.75056436]
[1762179315305,3.2078,3726.0,3725.5,0.48324]
[1762179315601,3.2078,3726.4,3725.7,0.48322]
[1762179315803,3.2078,3726.4,3725.6,9.88]
[1762179315804,3.2078,3726.0,3725.3,9.882]
[1762179316103,3.2078,3725.5,3725.3,9.882]
[1762179316303,3.2078,3725.5,3725.3,30.63256436]
[1762179316504,3.2078,3725.5,3725.4,20.75056436]
[1762179317200,3.2078,3725.5,3725.4,30.62656436]
[1762179317596,3.2078,3725.5,3725.4,20.75056436]
[1762179317802,3.2078,3725.5,3725.4,30.62656436]
[1762179318199,3.2078,3725.5,3725.4,20.75056436]
[1762179318398,3.2078,3725.5,3725.4,30.62356436]
[1762179318807,3.2078,3725.5,3725.4,30.61756436]
[1762179319505,3.2078,3725.5,3725.4,30.61356436]
[1762179320503,3.2078,3725.5,3725.4,20.75056436]
[1762179320808,3.95571961,3725.5,3725.4,30.60756436]
[1762179321704,3.95571961,3725.5,3725.4,9.857]
[1762179322303,12.24791037,3725.5,3725.2,0.036]
[1762179322503,9.04011037,3725.4,3724.1,3.2078]
[1762179322707,3.2078,3724.7,3724.3,20.75056436]
[1762179322901,0.74791961,3724.6,3724.3,20.75056436]
[1762179323104,0.74791961,3724.6,3724.5,20.75056436]
[1762179323307,1.44476719,3725.6,3725.4,0.48325]
[1762179323501,3.2078,3726.2,3725.8,0.4832]
[1762179323705,1.44476719,3726.6,3725.9,14.25879]
[1762179323908,3.2078,3727.0,3726.4,3.2078]
[1762179324112,3.2078,3727.5,3727.0,0.48305]
[1762179324313,3.2078,3727.5,3727.4,20.75056436]
[1762179324617,0.48304,3727.2,3726.9,9.841]
[1762179324807,3.2078,3727.0,3726.9,0.00332958]
[1762179325000,3.50031035,3727.0,3726.9,9.84732958]
[1762179325210,3.50031035,3727.0,3726.9,30.59789394]
[1762179325805,3.50031035,3727.0,3726.9,9.84732958]
[1762179326006,3.50031035,3727.0,3726.9,9.84132958]
[1762179326311,4.9296236,3727.0,3726.9,9.84132958]
[1762179326816,4.9296236,3727.0,3726.9,0.00332958]
[1762179326817,3.50031035,3727.0,3726.9,0.00332958]
[1762179327817,18.20831035,3727.0,3725.3,3.2078]
[1762179328008,3.2078,3725.8,3725.4,2.987]
[1762179328207,0.29251035,3725.7,3725.5,2.987]
[1762179328409,0.29251035,3725.6,3725.3,0.48327]
[1762179328608,0.29251035,3725.6,3725.1,20.75056436]
[1762179328609,0.29251035,3725.5,3725.4,30.58356436]
[1762179328917,0.29251035,3725.5,3725.4,9.83579063]
[1762179329104,0.29251035,3725.5,3725.4,20.75335499]
[1762179329308,0.29251035,3725.5,3725.4,30.58635499]
[1762179329702,0.29251035,3725.5,3725.4,20.75335499]
[1762179329914,0.29251035,3725.5,3725.4,30.58035499]
[1762179330213,1.72625583,3725.5,3725.4,30.58035499]
[1762179331207,1.72625583,3725.5,3725.4,20.75335499]
[1762179331403,0.29251035,3725.5,3725.4,30.57235499]
[1762179331816,0.29251035,3725.5,3725.4,31.05561499]
[1762179332009,0.29251035,3725.5,3725.4,37.76601499]
[1762179332309,0.29251035,3725.5,3725.4,21.23661499]
[1762179332508,0.29251035,3725.5,3725.4,31.05561499]
[1762179333012,1.43852839,3725.9,3725.6,0.48323]
[1762179333210,1.71724988,3725.8,3725.6,0.48323]
[1762179333413,0.27872149,3725.7,3725.6,0.48323]
[1762179333803,0.27872149,3725.7,3725.6,21.23379436]
[1762179335205,1.0195313,3725.7,3725.6,21.23379436]
[1762179337018,1.0195313,3725.7,3725.6,31.03979436]
[1762179338422,1.0195313,3725.7,3725.6,20.75056436]
[1762179338611,1.0195313,3725.7,3725.6,30.54256436]
[1762179339112,1.0195313,3725.7,3725.6,30.54456436]
[1762179339514,1.0195313,3725.7,3725.6,30.54256436]
[1762179339714,1.0195313,3725.7,3725.6,20.75056436]
[1762179339914,1.5027513,3725.7,3725.6,30.54256436]
[1762179340114,1.5027513,3725.7,3725.6,20.75056436]
[1762179340311,2.94127969,3725.7,3725.6,30.54756436]
[1762179340817,2.45805969,3725.7,3725.6,20.75056436]
[1762179341024,2.45805969,3725.7,3725.6,30.54256436]
[1762179341218,1.0195313,3725.7,3725.6,30.54256436]
[1762179341823,2.94127969,3725.7,3725.6,20.75056436]
[1762179342421,2.94127969,3725.7,3725.6,30.53556436]
[1762179342924,2.94127969,3725.7,3725.6,20.75056436]
[1762179343120,2.94127969,3725.7,3725.6,30.53356436]
[1762179343524,2.94127969,3725.7,3725.6,20.75056436]
[1762179343923,2.45805969,3725.7,3725.6,31.01379436]
[1762179344221,2.45805969,3725.7,3725.6,30.53056436]
[1762179344616,2.94127969,3725.7,3725.6,30.53056436]
[1762179345221,2.94127969,3725.7,3725.6,20.75056436]
[1762179345422,2.94127969,3725.7,3725.6,30.52956436]
[1762179345614,2.94221237,3725.7,3725.6,20.75056436]
[1762179345820,2.94221237,3725.7,3725.6,30.52756436]
[1762179346026,0.76287417,3725.7,3725.6,30.52756436]
[1762179346218,0.76287417,3725.7,3725.6,20.75056436]
[1762179346526,0.76287417,3725.7,3725.6,30.52756436]
[1762179347718,0.48325,3725.5,3725.4,0.00279063]
[1762179347919,0.48333,3724.9,3724.5,3.2078]
[1762179348124,0.27965417,3724.8,3724.6,10.26036]
[1762179348321,0.2796503,3724.7,3724.1,3.2078]
[1762179348524,0.2796503,3724.6,3724.2,8.974]
[1762179348727,0.7630303,3724.5,3724.4,20.75056436]
[1762179349029,0.48339,3724.4,3724.3,20.75056436]
[1762179349230,0.7630403,3724.4,3724.3,0.00255159]
[1762179349421,0.7630403,3724.4,3724.3,27.10011595]
[1762179349727,0.2796503,3724.4,3724.3,27.10011595]
[1762179350119,0.2796503,3724.4,3724.3,20.75311595]
[1762179350327,0.00226961,3724.5,3724.3,30.54011595]
[1762179350727,0.48564961,3724.5,3724.3,30.54011595]
[1762179350924,0.48339,3724.4,3724.3,0.00255159]
[1762179351120,0.00226961,3724.5,3724.4,21.23395436]
[1762179351321,3.2078,3725.8,3724.4,20.75056436]
[1762179351523,0.48327,3725.3,3724.8,0.48333]
[1762179351725,0.27939175,3725.2,3725.0,20.75056436]
[1762179351922,0.48327,3725.3,3725.1,9.787]
[1762179352126,3.2078,3725.8,3725.1,9.787]
[1762179352430,0.48323,3725.6,3725.3,20.75056436]
[1762179352729,0.76263524,3725.5,3725.2,20.75056436]
[1762179352929,0.27938524,3725.4,3725.1,9.787]
[1762179353130,3.21053018,3725.8,3725.1,9.787]
[1762179353330,0.48326,3725.4,3725.1,9.787]
[1762179353725,0.48324,3725.6,3725.2,20.75056436]
[1762179353931,0.76266636,3725.5,3725.3,20.75056436]
[1762179354125,0.48325,3725.5,3725.4,9.779]
[1762179354325,0.76266636,3725.5,3725.4,9.779]
[1762179356629,0.00273018,3725.8,3725.7,0.48322]
[1762179356823,0.00273018,3725.8,3725.7,21.23378436]
[1762179357025,0.00273018,3725.8,3725.7,31.01278436]
[1762179359031,0.00273018,3725.8,3725.7,30.52956436]
[1762179359229,0.00273018,3725.8,3725.7,30.52856436]
[1762179359629,0.00273018,3725.8,3725.7,21.23378436]
[1762179359932,3.2078,3726.7,3725.8,1.20802]
[1762179360133,3.2078,3726.7,3726.4,0.48313]
[1762179360331,0.48308,3726.8,3726.5,9.787]
[1762179360533,3.2078,3727.1,3726.7,20.75056436]
[1762179360734,0.76277371,3727.0,3726.8,9.787]
[1762179360938,0.27971371,3726.9,3726.8,30.53756436]
[1762179361940,0.76277371,3726.9,3726.8,30.53756436]
[1762179362343,0.76277371,3726.9,3726.8,20.75056436]
[1762179362546,0.48308,3726.8,3726.7,20.75056436]
[1762179362743,0.48308,3726.8,3726.7,9.778]
[1762179362940,3.21007066,3727.1,3726.7,30.52856436]
[1762179363245,0.48308,3726.8,3726.7,9.778]
[1762179363635,0.48308,3726.8,3726.7,30.52856436]